[Event "FIDE World Rapid-ch Open 2018"]
[White "Shaposhnikov, Evgeny"]
[Black "Sanikidze, Tornike"]
[Site "St. Petersburg"]
[Round "9.78"]
[Annotator "ChessBase"]
[Result "0-1"]
[Date "2018.12.27"]
[WhiteElo "2576"]
[BlackElo "2507"]
[PlyCount "90"]
[TimeControl "900+10"]

1. e4 {[%emt 0:0:0]} e6 {[%emt 0:0:33]} 2. d3 {[%emt 0:0:0]} d5 {[%emt 0:0:0]} 3. Qe2 {[%emt 0:0:0]} dxe4 {[%emt 0:0:14]} 4. dxe4 {[%emt 0:0:0]} Nc6 {[%emt 0:0:1]} 5. Nf3 {[%emt 0:0:20]} e5 {[%emt 0:0:2]} 6. c3 {[%emt 0:0:6]
} Nf6 {[%emt 0:0:45]} 7. b4 {[%emt 0:0:22]} Bd6 {[%emt 0:0:20]
} 8. Nbd2 {[%emt 0:0:20]} 0-0 {[%emt 0:0:3]} 9. Nc4 {[%emt 0:0:10]} Be6 {[%emt 0:0:11]
} 10. Qc2 {[%emt 0:1:15]} h6 {[%emt 0:0:25]} 11. Be2 {[%emt 0:0:0]} a5 {[%emt 0:1:0]} 12. b5 {[%emt 0:0:6]} Bxc4 {[%emt 0:0:1]} 13. Bxc4 {[%emt 0:0:4]} Ne7 {[%emt 0:0:2]} 14. Nh4 {[%emt 0:0:42]} Qd7 {[%emt 0:0:39]
} 15. Qe2 {[%emt 0:0:29]} Bc5 {[%emt 0:2:6]} 16. h3 {[%emt 0:0:0]} Rad8 {[%emt 0:0:12]} 17. 0-0 {[%emt 0:0:8]} g5 {[%emt 0:0:7]} 18. Qf3 {[%emt 0:0:59]} Kg7 {[%emt 0:0:9]} 19. Qg3 {[%emt 0:0:14]} Qd6 {[%emt 0:3:38]
} 20. Bxg5 {[%emt 0:4:30]} Nxe4 {[%emt 0:2:52]} 21. Bf6+ {[%emt 0:1:20]
} Kxf6 {[%emt 0:0:1]} 22. Qf3+ {[%emt 0:0:3]} Kg7 {[%emt 0:0:0]} 23. Qxe4 {[%emt 0:0:7]} f5 {[%emt 0:0:1]} 24. Qxb7 {[%emt 0:2:4]} e4 {[%emt 0:0:0]} 25. Rad1 {[%emt 0:0:55]} Qxd1 {[%emt 0:2:19]} 26. Rxd1 {[%emt 0:0:7]
} Rxd1+ {[%emt 0:0:1]} 27. Kh2 {[%emt 0:0:32]} Bxf2 {[%emt 0:0:0]} 28. Nxf5+ {[%emt 0:1:52]} Nxf5 {[%emt 0:0:57]} 29. Qxc7+ {[%emt 0:0:0]} Kg6 {[%emt 0:1:1]} 30. Qc6+ {[%emt 0:0:23]} Kg5 {[%emt 0:0:9]} 31. h4+ {[%emt 0:0:51]} Bxh4 {[%emt 0:0:18]} 32. g4 {[%emt 0:0:30]} Bg3+ {[%emt 0:1:37]
} 33. Kh3 {[%emt 0:0:2]} Rh1+ {[%emt 0:0:23]} 34. Kg2 {[%emt 0:0:1]
} Rh2+ {[%emt 0:0:1]} 35. Kg1 {[%emt 0:0:2]} Kxg4 {[%emt 0:0:0]} 36. Qxe4+ {[%emt 0:0:12]} Bf4 {[%emt 0:0:20]} 37. Be6 {[%emt 0:0:22]
} Kg5 {[%emt 0:0:10]} 38. b6 {[%emt 0:0:22]} Rb2 {[%emt 0:0:5]} 39. Qd5 {[%emt 0:0:26]
} Rxb6 {[%emt 0:0:16]} 40. Qg2+ {[%emt 0:0:22]} Kf6 {[%emt 0:0:0]} 41. Bb3 {[%emt 0:0:7]} Rd6 {[%emt 0:0:12]} 42. Qf3 {[%emt 0:0:7]} Kg5 {[%emt 0:0:11]} 43. Bd5 {[%emt 0:0:12]} Re8 {[%emt 0:0:10]} 44. Be4 {[%emt 0:0:32]
} Ng3 {[%emt 0:0:2]} 45. Bc2 {[%emt 0:0:9]} Rd2 {[%emt 0:0:0]} 0-1

[Event "FIDE World Rapid-ch Open 2018"]
[White "Lintchevski, Daniil"]
[Black "Zubritskiy, Artyom"]
[Site "St. Petersburg"]
[Round "9.79"]
[Annotator "ChessBase"]
[Result "0-1"]
[Date "2018.12.27"]
[WhiteElo "2516"]
[BlackElo "2442"]
[PlyCount "68"]
[TimeControl "900+10"]

1. d4 d5 2. c4 dxc4 3. e3 e5 4. Bxc4 Nc6 5. Nf3 e4 6. Nfd2 Qg5 7. Nxe4 Qxg2 8. Ng3 Nf6 9. Bf1 Qd5 10. Nc3 Bb4 11. Bd2 Bxc3 12. bxc3 Bg4 13. Qb3 Qd7 14. Bg2 Rb8 15. h3 Bh5 16. Nxh5 Nxh5 17. Qa3 Ne7 18. Bf3 Nf6 19. Qxa7 0-0 20. Qc5 Rfe8 21. Qg5 h6 22. Qg2 Nf5 23. h4 c5 24. d5 Qa4 25. Qh3 Re5 26. Rd1 Nxd5 27. e4 Rxe4+ 28. Bxe4 Qxe4+ 29. Kf1 Ng3+ 30. Qxg3 Qxh1+ 31. Qg1 Qf3 32. Re1 Qd3+ 33. Re2 Re8 34. Qg4 f5 0-1

[Event "FIDE World Rapid-ch Open 2018"]
[White "Hirneise, Jens"]
[Black "Smirin, Ilia"]
[Site "St. Petersburg"]
[Round "9.80"]
[Annotator "ChessBase"]
[Result "1/2-1/2"]
[Date "2018.12.27"]
[WhiteElo "2371"]
[BlackElo "2609"]
[PlyCount "108"]
[TimeControl "900+10"]

1. e4 {[%emt 0:0:0]} c5 {[%emt 0:0:0]} 2. Nf3 {[%emt 0:0:0]} e6 {[%emt 0:0:0]} 3. d4 {[%emt 0:0:0]} cxd4 {[%emt 0:0:0]} 4. Nxd4 {[%emt 0:0:0]} a6 {[%emt 0:0:0]} 5. Nc3 {[%emt 0:0:0]} Qc7 {[%emt 0:0:4]} 6. Bd3 {[%emt 0:0:0]
} Nf6 {[%emt 0:0:13]} 7. f4 {[%emt 0:0:9]} Bb4 {[%emt 0:0:42]
} 8. Bd2 {[%emt 0:1:10]} d6 {[%emt 0:0:8]} 9. Qe2 {[%emt 0:0:34]} e5 {[%emt 0:1:34]
} 10. fxe5 {[%emt 0:1:22]} dxe5 {[%emt 0:0:4]} 11. Nb3 {[%emt 0:0:38]
} Be6 {[%emt 0:1:11]} 12. 0-0 {[%emt 0:0:30]} Nbd7 {[%emt 0:0:0]} 13. Kh1 {[%emt 0:0:38]} Be7 {[%emt 0:0:21]} 14. Bg5 {[%emt 0:0:44]} 0-0 {[%emt 0:2:31]} 15. Nd2 {[%emt 0:0:37]} Rac8 {[%emt 0:0:36]} 16. Nd1 {[%emt 0:2:54]
} Nc5 {[%emt 0:0:59]} 17. Ne3 {[%emt 0:0:33]} Ne8 {[%emt 0:0:0]} 18. Bxe7 {[%emt 0:0:11]} Qxe7 {[%emt 0:0:1]} 19. Bc4 {[%emt 0:0:33]} Nd6 {[%emt 0:1:21]} 20. Bd5 {[%emt 0:0:13]} b5 {[%emt 0:0:21]} 21. b3 {[%emt 0:0:35]
} b4 {[%emt 0:0:53]} 22. a3 {[%emt 0:1:6]} bxa3 {[%emt 0:0:0]} 23. b4 {[%emt 0:0:57]} Na4 {[%emt 0:1:3]} 24. Qxa6 {[%emt 0:0:18]} Nc3 {[%emt 0:0:42]} 25. Qxa3 {[%emt 0:0:11]} Bxd5 {[%emt 0:0:18]} 26. Nxd5 {[%emt 0:0:46]
} Nxd5 {[%emt 0:0:7]} 27. exd5 {[%emt 0:0:1]} Rxc2 {[%emt 0:0:0]} 28. Qd3 {[%emt 0:0:17]} Qc7 {[%emt 0:1:15]} 29. Ne4 {[%emt 0:0:28]} Nxe4 {[%emt 0:0:32]} 30. Qxe4 {[%emt 0:0:1]} f5 {[%emt 0:0:9]} 31. Qd3 {[%emt 0:0:32]
} e4 {[%emt 0:0:16]} 32. Qd4 {[%emt 0:1:11]} Qc4 {[%emt 0:0:0]} 33. Qe5 {[%emt 0:0:46]} f4 {[%emt 0:0:42]} 34. Rg1 {[%emt 0:0:35]} Qxb4 {[%emt 0:1:55]} 35. Ra7 {[%emt 0:0:17]} Qc3 {[%emt 0:0:1]} 36. Rxg7+ {[%emt 0:1:55]
} Kh8 {[%emt 0:0:1]} 37. Re7+ {[%emt 0:0:10]} Qxe5 {[%emt 0:0:0]} 38. Rxe5 {[%emt 0:0:0]} Re2 {[%emt 0:0:30]} 39. d6 {[%emt 0:0:17]} Rd8 {[%emt 0:0:4]} 40. Rf5 {[%emt 0:0:16]} Rf2 {[%emt 0:0:23]} 41. Rd5 {[%emt 0:0:11]
} e3 {[%emt 0:0:10]} 42. Rdd1 {[%emt 0:0:12]} Kg7 {[%emt 0:0:0]} 43. Rge1 {[%emt 0:0:8]} Rd2 {[%emt 0:0:9]} 44. Rxd2 {[%emt 0:0:12]} exd2 {[%emt 0:0:1]} 45. Rd1 {[%emt 0:0:0]} Rxd6 {[%emt 0:0:2]} 46. Kg1 {[%emt 0:0:2]
} Kf6 {[%emt 0:0:33]} 47. Kf2 {[%emt 0:0:1]} Kf5 {[%emt 0:0:0]} 48. Ke2 {[%emt 0:0:5]} Rg6 {[%emt 0:0:4]} 49. Kf3 {[%emt 0:0:32]} Rd6 {[%emt 0:0:2]} 50. Ke2 {[%emt 0:0:1]} Kg4 {[%emt 0:0:34]} 51. Rxd2 {[%emt 0:0:8]
} Rh6 {[%emt 0:0:2]} 52. h3+ {[%emt 0:0:15]} Kg3 {[%emt 0:0:0]} 53. Kf1 {[%emt 0:0:11]} Re6 {[%emt 0:0:18]} 54. Rd3+ {[%emt 0:0:18]} Kh4 {[%emt 0:0:8]} 1/2-1/2

[Event "FIDE World Rapid-ch Open 2018"]
[White "Huzman, Alexander"]
[Black "Drygalov, Sergey"]
[Site "St. Petersburg"]
[Round "9.81"]
[Annotator "ChessBase"]
[Result "1-0"]
[Date "2018.12.27"]
[WhiteElo "2580"]
[BlackElo "2446"]
[PlyCount "97"]
[TimeControl "900+10"]

1. Nf3 {[%emt 0:0:0]} Nf6 {[%emt 0:0:0]} 2. c4 {[%emt 0:0:0]} e6 {[%emt 0:0:0]
} 3. e3 {[%emt 0:0:8]} b6 {[%emt 0:0:26]} 4. Nc3 {[%emt 0:0:0]} Bb7 {[%emt 0:0:1]} 5. d4 {[%emt 0:0:2]} Bb4 {[%emt 0:0:10]} 6. Bd3 {[%emt 0:0:3]
} 0-0 {[%emt 0:0:21]} 7. 0-0 {[%emt 0:0:2]} d6 {[%emt 0:0:59]
} 8. Na4 {[%emt 0:5:24]} d5 {[%emt 0:0:44]} 9. c5 {[%emt 0:0:1]} bxc5 {[%emt 0:0:35]
} 10. a3 {[%emt 0:0:0]} c4 {[%emt 0:1:24]} 11. Bxh7+ {[%emt 0:0:0]} Nxh7 {[%emt 0:1:14]} 12. axb4 {[%emt 0:0:2]} Nd7 {[%emt 0:1:29]} 13. b3 {[%emt 0:0:34]} cxb3 {[%emt 0:0:58]} 14. Qxb3 {[%emt 0:0:8]} Bc6 {[%emt 0:1:59]
} 15. Nc3 {[%emt 0:0:36]} a6 {[%emt 0:0:7]} 16. Ra5 {[%emt 0:0:0]} Nhf6 {[%emt 0:1:7]} 17. Ba3 {[%emt 0:0:44]} Re8 {[%emt 0:0:3]} 18. Rc1 {[%emt 0:0:1]} Qb8 {[%emt 0:0:42]} 19. Qc2 {[%emt 0:0:9]} Rc8 {[%emt 0:0:59]
} 20. Ne5 {[%emt 0:0:42]} Nxe5 {[%emt 0:0:48]} 21. dxe5 {[%emt 0:0:1]
} Nd7 {[%emt 0:0:2]} 22. Ne4 {[%emt 0:0:5]} Bb5 {[%emt 0:0:0]} 23. Ng5 {[%emt 0:0:2]} Nf8 {[%emt 0:0:2]} 24. Bb2 {[%emt 0:0:46]} Bc4 {[%emt 0:1:45]} 25. Qd2 {[%emt 0:0:2]} Nh7 {[%emt 0:2:33]} 26. Nf3 {[%emt 0:0:18]
} c6 {[%emt 0:0:26]} 27. Bd4 {[%emt 0:0:9]} Qc7 {[%emt 0:0:0]} 28. Bc5 {[%emt 0:0:15]} Qd8 {[%emt 0:0:2]} 29. h4 {[%emt 0:0:2]} Rab8 {[%emt 0:0:5]} 30. Qd4 {[%emt 0:0:20]} Rb5 {[%emt 0:0:6]} 31. Ra3 {[%emt 0:1:45]
} Be2 {[%emt 0:0:26]} 32. Nd2 {[%emt 0:0:17]} Bh5 {[%emt 0:0:0]} 33. Rxa6 {[%emt 0:0:11]} Nf8 {[%emt 0:0:3]} 34. Nb3 {[%emt 0:0:38]} Ng6 {[%emt 0:0:10]} 35. Ra7 {[%emt 0:0:6]} Qxh4 {[%emt 0:0:9]} 36. Qxh4 {[%emt 0:0:7]
} Nxh4 {[%emt 0:0:1]} 37. Nd4 {[%emt 0:0:0]} Rbb8 {[%emt 0:0:0]} 38. Bd6 {[%emt 0:0:4]} Ra8 {[%emt 0:0:11]} 39. Rxc6 {[%emt 0:0:31]} Rxa7 {[%emt 0:0:9]} 40. Rxc8+ {[%emt 0:0:2]} Kh7 {[%emt 0:0:1]} 41. b5 {[%emt 0:0:1]
} Ra1+ {[%emt 0:0:9]} 42. Kh2 {[%emt 0:0:1]} Rb1 {[%emt 0:0:0]} 43. Bc5 {[%emt 0:0:41]} Nf5 {[%emt 0:0:21]} 44. Nxf5 {[%emt 0:0:3]} exf5 {[%emt 0:0:1]} 45. b6 {[%emt 0:0:1]} Be2 {[%emt 0:0:15]} 46. Rc7 {[%emt 0:0:6]
} Kg6 {[%emt 0:0:1]} 47. b7 {[%emt 0:0:5]} f6 {[%emt 0:0:23]
} 48. exf6 {[%emt 0:0:13]} gxf6 {[%emt 0:0:34]} 49. Ba7 {[%emt 0:0:3]} 1-0

[Event "FIDE World Rapid-ch Open 2018"]
[White "Teske, Henrik"]
[Black "Borisenko, Viacheslav"]
[Site "St. Petersburg"]
[Round "9.82"]
[Annotator "ChessBase"]
[Result "0-1"]
[Date "2018.12.27"]
[WhiteElo "2483"]
[BlackElo "2289"]
[PlyCount "130"]
[TimeControl "900+10"]

1. e4 {[%emt 0:2:59]} c5 {[%emt 0:0:0]} 2. Nf3 {[%emt 0:0:2]} e6 {[%emt 0:0:0]} 3. c4 {[%emt 0:0:2]} Nc6 {[%emt 0:0:3]} 4. Nc3 {[%emt 0:0:2]} e5 {[%emt 0:0:1]} 5. a3 {[%emt 0:0:11]} Be7 {[%emt 0:0:20]} 6. b4 {[%emt 0:0:0]} d6 {[%emt 0:1:23]} 7. Nd5 {[%emt 0:0:13]} Nf6 {[%emt 0:0:0]} 8. d3 {[%emt 0:0:4]
} Bg4 {[%emt 0:0:30]} 9. Be3 {[%emt 0:0:20]} Bxf3 {[%emt 0:0:0]} 10. gxf3 {[%emt 0:0:18]} Nxd5 {[%emt 0:0:12]} 11. cxd5 {[%emt 0:0:17]} Nd4 {[%emt 0:0:1]} 12. bxc5 {[%emt 0:0:26]} Qa5+ {[%emt 0:0:44]} 13. Bd2 {[%emt 0:0:4]
} Qxc5 14. Ra2 {[%emt 0:0:35]} Rc8 {[%emt 0:0:24]} 15. Bh3 {[%emt 0:0:13]
} f5 {[%emt 0:2:11]} 16. 0-0 {[%emt 0:0:10]} 0-0 {[%emt 0:0:0]} 17. Be3 {[%emt 0:1:54]} g6 {[%emt 0:1:51]} 18. Rb2 {[%emt 0:0:24]} Rc7 {[%emt 0:0:15]} 19. Rb4 {[%emt 0:0:3]} fxe4 {[%emt 0:0:48]} 20. fxe4 {[%emt 0:0:44]
} Qc3 {[%emt 0:2:12]} 21. Bxd4 {[%emt 0:1:37]} exd4 {[%emt 0:0:0]} 22. Rb3 {[%emt 0:0:1]} Qc5 {[%emt 0:0:27]} 23. Rb4 {[%emt 0:1:20]} Qc3 {[%emt 0:0:24]} 24. Rb3 {[%emt 0:0:5]} Qc5 {[%emt 0:0:1]} 25. Rb4 {[%emt 0:0:38]
} Qc3 {[%emt 0:0:33]} 26. Qa4 {[%emt 0:0:4]} Qxd3 {[%emt 0:0:0]} 27. Be6+ {[%emt 0:0:2]} Kg7 {[%emt 0:1:11]} 28. Qxa7 {[%emt 0:0:51]} Bf6 {[%emt 0:0:13]} 29. Rxb7 {[%emt 0:0:16]} Rxb7 {[%emt 0:0:1]} 30. Qxb7+ {[%emt 0:0:3]} Kh6 {[%emt 0:0:1]} 31. Qc7 {[%emt 0:1:9]} Be5 {[%emt 0:0:0]} 32. Qc1+ {[%emt 0:0:59]} Bf4 {[%emt 0:2:0]} 33. Qd1 {[%emt 0:0:6]} Qxe4 {[%emt 0:0:15]} 34. Qg4 {[%emt 0:0:22]} Kg7 {[%emt 0:0:28]} 35. Qh4 {[%emt 0:0:55]
} g5 {[%emt 0:0:4]} 36. Qg4 {[%emt 0:0:8]} d3 {[%emt 0:0:21]
} 37. Rd1 {[%emt 0:0:18]} d2 {[%emt 0:0:18]} 38. h4 {[%emt 0:0:17]} h6 {[%emt 0:0:13]
} 39. hxg5 {[%emt 0:0:36]} hxg5 {[%emt 0:0:1]} 40. Qh5 {[%emt 0:0:1]
} Qe1+ {[%emt 0:0:13]} 41. Kg2 {[%emt 0:0:2]} Qe4+ {[%emt 0:0:0]} 42. Kg1 {[%emt 0:0:8]} Qh7 {[%emt 0:0:12]} 43. Qxh7+ {[%emt 0:0:27]
} Kxh7 {[%emt 0:0:1]} 44. Bd7 {[%emt 0:0:17]} Rb8 {[%emt 0:0:22]} 45. a4 {[%emt 0:0:18]
} Kg7 {[%emt 0:0:3]} 46. Bc6 {[%emt 0:0:10]} Rb2 {[%emt 0:0:0]} 47. Kf1 {[%emt 0:0:4]} Ra2 {[%emt 0:0:19]} 48. Ke2 {[%emt 0:0:2]} Kf6 {[%emt 0:0:1]} 49. Kd3 {[%emt 0:0:4]} Ra3+ {[%emt 0:0:5]} 50. Ke2 {[%emt 0:0:24]
} Ke5 {[%emt 0:0:4]} 51. Rb1 {[%emt 0:0:54]} Rc3 {[%emt 0:0:0]} 52. Rd1 {[%emt 0:0:9]} Kd4 {[%emt 0:0:1]} 53. Rh1 {[%emt 0:0:13]} Ra3 {[%emt 0:0:8]} 54. Be8 {[%emt 0:0:26]} Kxd5 {[%emt 0:0:11]} 55. Bb5 {[%emt 0:0:9]
} Kd4 {[%emt 0:0:5]} 56. Be8 {[%emt 0:0:6]} Ra2 {[%emt 0:0:0]} 57. Rb1 {[%emt 0:0:13]} Rc2 {[%emt 0:0:16]} 58. Rd1 {[%emt 0:0:7]} d5 {[%emt 0:0:16]} 59. Bb5 {[%emt 0:0:8]} Ra2 {[%emt 0:0:5]} 60. Be8 {[%emt 0:0:3]
} Kc3 {[%emt 0:0:7]} 61. Bd7 {[%emt 0:0:2]} d4 {[%emt 0:0:0]} 62. Be8 {[%emt 0:0:2]} d3+ {[%emt 0:0:4]} 63. Kf1 {[%emt 0:0:3]} Kc2 {[%emt 0:0:8]} 64. Bh5 {[%emt 0:0:3]} Rxa4 {[%emt 0:0:3]} 65. Kg2 {[%emt 0:0:1]
} Be5 {[%emt 0:0:15]} 0-1

[Event "FIDE World Rapid-ch Open 2018"]
[White "Nihal Sarin"]
[Black "Vaisser, Anatoli"]
[Site "St. Petersburg"]
[Round "9.83"]
[Annotator "ChessBase"]
[Result "1-0"]
[Date "2018.12.27"]
[WhiteElo "2576"]
[BlackElo "2505"]
[PlyCount "65"]
[TimeControl "900+10"]

1. e4 {[%emt 0:0:0]} e6 {[%emt 0:0:0]} 2. d4 {[%emt 0:0:2]} d5 {[%emt 0:0:0]} 3. Bd3 {[%emt 0:0:13]} dxe4 {[%emt 0:0:2]} 4. Bxe4 {[%emt 0:0:3]} Nf6 {[%emt 0:0:2]} 5. Bf3 {[%emt 0:0:3]} Nbd7 {[%emt 0:0:15]} 6. Ne2 {[%emt 0:0:21]
} e5 {[%emt 0:0:29]} 7. Nbc3 {[%emt 0:0:20]} c6 {[%emt 0:0:38]
} 8. 0-0 {[%emt 0:0:11]} Bd6 {[%emt 0:0:17]} 9. Ng3 {[%emt 0:0:52]} 0-0 {[%emt 0:0:19]
} 10. d5 {[%emt 0:0:25]} cxd5 {[%emt 0:0:9]} 11. Nxd5 {[%emt 0:0:4]
} e4 {[%emt 0:0:53]} 12. Nxe4 {[%emt 0:1:0]} Nxe4 {[%emt 0:0:0]} 13. Bxe4 {[%emt 0:0:4]} Qh4 {[%emt 0:4:16]} 14. f4 {[%emt 0:0:10]} Bc5+ {[%emt 0:0:13]} 15. Kh1 {[%emt 0:0:28]} Nb6 {[%emt 0:1:1]} 16. Qe1 {[%emt 0:3:43]
} Qd8 {[%emt 0:0:36]} 17. Qc3 {[%emt 0:1:24]} Bd6 {[%emt 0:0:0]} 18. Nxb6 {[%emt 0:0:35]} Qxb6 {[%emt 0:0:2]} 19. Be3 {[%emt 0:0:16]} Qc7 {[%emt 0:0:9]} 20. Qxc7 {[%emt 0:0:17]} Bxc7 {[%emt 0:0:1]} 21. Rfe1 {[%emt 0:0:45]
} a6 {[%emt 0:1:15]} 22. g3 {[%emt 0:1:5]} Rb8 {[%emt 0:0:49]
} 23. Ba7 {[%emt 0:0:37]} Ra8 {[%emt 0:0:1]} 24. Bc5 {[%emt 0:0:37]} Rd8 {[%emt 0:0:1]
} 25. Rad1 {[%emt 0:0:7]} Rxd1 {[%emt 0:1:35]} 26. Rxd1 {[%emt 0:0:3]
} Bg4 {[%emt 0:0:4]} 27. Re1 {[%emt 0:1:37]} h5 {[%emt 0:0:0]} 28. Bxb7 {[%emt 0:0:38]} Rb8 {[%emt 0:0:2]} 29. Bxa6 {[%emt 0:0:4]} Rxb2 {[%emt 0:0:16]} 30. Re8+ {[%emt 0:0:29]} Kh7 {[%emt 0:0:1]} 31. Bd3+ {[%emt 0:0:3]
} f5 {[%emt 0:0:30]} 32. Kg2 {[%emt 0:0:6]} Bb6 {[%emt 0:0:0]} 33. Rb8 {[%emt 0:0:13]} 1-0

[Event "FIDE World Rapid-ch Open 2018"]
[White "Belozerov, Andrei"]
[Black "Vorotnikov, Vladislav V"]
[Site "St. Petersburg"]
[Round "9.84"]
[Annotator "ChessBase"]
[Result "1-0"]
[Date "2018.12.27"]
[WhiteElo "2528"]
[BlackElo "2417"]
[PlyCount "159"]
[TimeControl "900+10"]

1. e4 {[%emt 0:0:11]} e5 {[%emt 0:0:0]} 2. Nf3 {[%emt 0:0:2]} d6 {[%emt 0:0:0]} 3. d4 {[%emt 0:0:2]} exd4 {[%emt 0:0:4]} 4. Qxd4 {[%emt 0:0:8]} Nc6 {[%emt 0:0:4]} 5. Bb5 {[%emt 0:0:1]} Nge7 {[%emt 0:0:8]} 6. Bg5 {[%emt 0:1:55]
} h6 {[%emt 0:0:15]} 7. Bh4 {[%emt 0:0:20]} Qd7 {[%emt 0:0:26]
} 8. Qc3 {[%emt 0:0:55]} a6 {[%emt 0:0:36]} 9. Bd3 {[%emt 0:0:33]} Rg8 {[%emt 0:1:48]
} 10. Qd2 {[%emt 0:0:38]} g5 {[%emt 0:0:29]} 11. Bg3 {[%emt 0:0:0]} Bg7 {[%emt 0:1:19]} 12. Nc3 {[%emt 0:0:2]} Qe6 {[%emt 0:2:8]} 13. 0-0 {[%emt 0:0:57]} Bd7 {[%emt 0:0:8]} 14. Rae1 {[%emt 0:2:11]} 0-0-0 {[%emt 0:0:35]
} 15. b3 {[%emt 0:0:18]} Nd4 {[%emt 0:1:12]} 16. Nxd4 {[%emt 0:0:0]} Bxd4 {[%emt 0:0:3]} 17. Ne2 {[%emt 0:0:23]} Bb6 {[%emt 0:0:11]} 18. Bc4 {[%emt 0:1:30]} Qg6 {[%emt 0:0:43]} 19. Kh1 {[%emt 0:1:34]} Rgf8 {[%emt 0:2:5]
} 20. Nd4 {[%emt 0:0:23]} f5 {[%emt 0:1:20]} 21. exf5 {[%emt 0:0:0]} Nxf5 {[%emt 0:0:2]} 22. Nxf5 {[%emt 0:0:17]} Bxf5 {[%emt 0:0:14]} 23. Re2 {[%emt 0:0:18]} Rde8 {[%emt 0:1:32]} 24. Rfe1 {[%emt 0:0:18]} Rxe2 {[%emt 0:0:32]
} 25. Rxe2 {[%emt 0:0:3]} Re8 {[%emt 0:0:11]} 26. Rxe8+ {[%emt 0:1:10]
} Qxe8 {[%emt 0:0:1]} 27. Bd3 {[%emt 0:0:4]} Bxd3 {[%emt 0:0:0]} 28. cxd3 {[%emt 0:0:1]} Bd4 {[%emt 0:0:25]} 29. Kg1 {[%emt 0:0:14]} b5 {[%emt 0:0:39]} 30. Kf1 {[%emt 0:0:6]} Kb7 {[%emt 0:0:6]} 31. h3 {[%emt 0:0:7]
} Bb6 {[%emt 0:0:16]} 32. Qe2 {[%emt 0:0:15]} Qc6 {[%emt 0:0:0]} 33. Qd2 {[%emt 0:0:23]} Qd5 {[%emt 0:0:9]} 34. Qe2 {[%emt 0:0:16]} Qc6 {[%emt 0:0:8]} 35. Qd2 {[%emt 0:0:5]} Qd5 {[%emt 0:0:2]} 36. Qc2 {[%emt 0:0:14]
} a5 {[%emt 0:0:19]} 37. a4 {[%emt 0:0:18]} c6 {[%emt 0:0:31]} 38. Qd1 {[%emt 0:0:27]} Qd4 {[%emt 0:0:16]} 39. Kg1 {[%emt 0:0:15]} Qb2 {[%emt 0:0:30]
} 40. axb5 {[%emt 0:0:19]} cxb5 {[%emt 0:0:2]} 41. Qf3+ {[%emt 0:0:0]
} Ka7 {[%emt 0:0:17]} 42. Qf7+ {[%emt 0:0:9]} Ka6 {[%emt 0:0:0]} 43. Qd5 {[%emt 0:0:3]} Qc1+ {[%emt 0:0:46]} 44. Kh2 {[%emt 0:0:2]} Qc5 {[%emt 0:0:6]} 45. Qa8+ {[%emt 0:0:29]} Ba7 {[%emt 0:0:1]} 46. d4 {[%emt 0:0:8]
} Qxd4 {[%emt 0:0:17]} 47. Qc8+ {[%emt 0:0:1]} Kb6 {[%emt 0:0:0]} 48. Qd8+ {[%emt 0:0:4]} Kc6 {[%emt 0:0:10]} 49. Qxa5 {[%emt 0:0:26]
} Bc5 {[%emt 0:0:18]} 50. Qa8+ {[%emt 0:0:5]} Kb6 {[%emt 0:0:3]} 51. h4 {[%emt 0:0:13]
} g4 {[%emt 0:0:33]} 52. h5 {[%emt 0:0:8]} Qd3 {[%emt 0:0:37]
} 53. Bh4 {[%emt 0:0:6]} Bb4 {[%emt 0:0:20]} 54. Bd8+ {[%emt 0:0:26]} Kc5 {[%emt 0:0:1]
} 55. Qc8+ {[%emt 0:0:4]} Kd5 {[%emt 0:0:4]} 56. Qxg4 {[%emt 0:0:8]
} Bc3 {[%emt 0:0:2]} 57. Qg6 {[%emt 0:0:22]} Be5+ {[%emt 0:0:0]} 58. g3 {[%emt 0:0:0]} Qd2 {[%emt 0:0:20]} 59. Kg2 {[%emt 0:0:6]} Kc6 {[%emt 0:0:4]} 60. Qe4+ {[%emt 0:0:9]} Kd7 {[%emt 0:0:1]} 61. Bb6 {[%emt 0:0:4]
} Qc3 {[%emt 0:0:8]} 62. Qh7+ {[%emt 0:0:22]} Ke8 {[%emt 0:0:0]} 63. Qg8+ {[%emt 0:0:9]} Ke7 {[%emt 0:0:12]} 64. Be3 {[%emt 0:0:7]} Qc6+ {[%emt 0:0:8]} 65. Kh2 {[%emt 0:0:3]} Qf3 {[%emt 0:0:5]} 66. Qh7+ {[%emt 0:0:8]
} Ke8 {[%emt 0:0:7]} 67. Qxh6 {[%emt 0:0:4]} Qf5 {[%emt 0:0:0]} 68. Qg6+ {[%emt 0:0:5]} Qxg6 {[%emt 0:0:1]} 69. hxg6 {[%emt 0:0:2]} Kf8 {[%emt 0:0:4]} 70. Bh6+ {[%emt 0:0:3]} Ke7 {[%emt 0:0:3]} 71. Kg2 {[%emt 0:0:4]
} Kf6 {[%emt 0:0:3]} 72. g7 {[%emt 0:0:3]} Kf7 {[%emt 0:0:0]} 73. f4 {[%emt 0:0:2]} Bc3 {[%emt 0:0:6]} 74. Kf3 {[%emt 0:0:3]} b4 {[%emt 0:0:9]
} 75. g4 {[%emt 0:0:2]} d5 {[%emt 0:0:3]} 76. Ke3 {[%emt 0:0:0]} Bb2 {[%emt 0:0:5]} 77. Kd3 {[%emt 0:0:1]} Bc3 {[%emt 0:0:7]} 78. f5 {[%emt 0:0:1]} Kg8 {[%emt 0:0:24]} 79. Bd2 {[%emt 0:0:4]} d4 {[%emt 0:0:0]} 80. Bh6 {[%emt 0:0:4]} 1-0

[Event "FIDE World Rapid-ch Open 2018"]
[White "Mamatov, Melis"]
[Black "Sokolin, Leonid"]
[Site "St. Petersburg"]
[Round "9.85"]
[Annotator "ChessBase"]
[Result "0-1"]
[Date "2018.12.27"]
[WhiteElo "2223"]
[BlackElo "2508"]
[PlyCount "109"]
[TimeControl "900+10"]

1. e4 {[%emt 0:0:0]} c5 {[%emt 0:0:0]} 2. Nf3 {[%emt 0:0:0]} Nc6 {[%emt 0:0:0]
} 3. d4 {[%emt 0:0:0]} cxd4 {[%emt 0:0:0]} 4. Nxd4 {[%emt 0:0:0]} Qb6 {[%emt 0:0:0]} 5. Nb3 {[%emt 0:0:27]} Nf6 {[%emt 0:0:0]} 6. Nc3 {[%emt 0:0:31]} e6 {[%emt 0:0:0]} 7. Be3 {[%emt 0:0:13]} Qc7 {[%emt 0:0:0]} 8. Qd2 {[%emt 0:0:46]} Bb4 {[%emt 0:0:2]} 9. f3 {[%emt 0:0:28]} d5 {[%emt 0:0:1]} 10. a3 {[%emt 0:0:53]} Bxc3 {[%emt 0:0:31]} 11. Qxc3 {[%emt 0:0:4]
} dxe4 {[%emt 0:0:11]} 12. fxe4 {[%emt 0:0:8]} 0-0 {[%emt 0:0:0]} 13. Bd3 {[%emt 0:0:28]} Ng4 {[%emt 0:0:26]} 14. Bg1 {[%emt 0:0:53]} b6 {[%emt 0:0:42]} 15. Nd4 {[%emt 0:1:6]} Bb7 {[%emt 0:0:28]} 16. Nxc6 {[%emt 0:0:9]
} Qxc6 {[%emt 0:0:34]} 17. Bd4 {[%emt 0:3:37]} e5 {[%emt 0:0:0]} 18. Qxc6 {[%emt 0:1:24]} Bxc6 {[%emt 0:0:1]} 19. Bc3 {[%emt 0:0:1]} Rfe8 {[%emt 0:1:51]} 20. 0-0 {[%emt 0:0:31]} Rad8 {[%emt 0:1:31]} 21. h3 {[%emt 0:0:33]
} Nf6 {[%emt 0:0:2]} 22. Rae1 {[%emt 0:0:30]} b5 {[%emt 0:0:0]} 23. a4 {[%emt 0:1:34]} a6 {[%emt 0:1:45]} 24. axb5 {[%emt 0:0:16]} axb5 {[%emt 0:0:33]} 25. Kf2 {[%emt 0:1:27]} Nd7 {[%emt 0:0:18]} 26. Bb4 {[%emt 0:0:14]
} Ra8 {[%emt 0:1:3]} 27. Ra1 {[%emt 0:0:12]} Nb6 {[%emt 0:0:0]} 28. b3 {[%emt 0:0:28]} f6 {[%emt 0:0:7]} 29. Ke3 {[%emt 0:0:11]} Rec8 {[%emt 0:0:22]} 30. Rfd1 {[%emt 0:0:28]} Be8 {[%emt 0:0:34]} 31. Ra5 {[%emt 0:0:32]
} Rxa5 {[%emt 0:0:30]} 32. Bxa5 {[%emt 0:0:0]} Rb8 {[%emt 0:0:0]} 33. Ra1 {[%emt 0:0:21]} Ra8 {[%emt 0:0:29]} 34. Kd2 {[%emt 0:0:48]} Bc6 {[%emt 0:0:26]} 35. Kc3 {[%emt 0:0:40]} Nd7 {[%emt 0:1:13]} 36. Kb4 {[%emt 0:0:1]
} Rc8 {[%emt 0:0:14]} 37. Re1 {[%emt 0:0:27]} Rb8 {[%emt 0:0:0]} 38. Bc7 {[%emt 0:0:22]} Rb7 {[%emt 0:0:1]} 39. Bd6 {[%emt 0:0:2]} Kf7 {[%emt 0:0:4]} 40. Kc3 {[%emt 0:0:9]} Ke6 {[%emt 0:0:2]} 41. Bb4 {[%emt 0:0:1]
} Ra7 {[%emt 0:0:3]} 42. g4 {[%emt 0:0:19]} Ra2 {[%emt 0:0:0]} 43. h4 {[%emt 0:0:10]} g6 {[%emt 0:0:19]} 44. g5 {[%emt 0:0:30]} f5 {[%emt 0:0:8]
} 45. exf5+ gxf5 46. h5 {[%emt 0:0:2]} e4 {[%emt 0:0:2]} 47. Be2 {[%emt 0:0:17]} Ne5 {[%emt 0:0:2]} 48. Rd1 {[%emt 0:0:6]} Bd5 49. Bxb5 {[%emt 0:0:32]} f4 {[%emt 0:0:6]} 50. Ba4 {[%emt 0:0:14]} e3 {[%emt 0:0:0]} 51. Bc5 {[%emt 0:0:8]} Be4 {[%emt 0:0:11]} 52. Rd6+ Kf5 {[%emt 0:0:0]
} 53. Bd7+ {[%emt 0:0:21]} Nxd7 {[%emt 0:0:0]} 54. Rxd7 {[%emt 0:0:1]} Rxc2+ {[%emt 0:0:0]} 55. Kb4 {[%emt 0:0:1]} 0-1